fUST/lending_fUST_20250726
["ID","MTS","AMOUNT","RATE_DAILY","PERIOD"]
[374977847,1753486239501,-848.06,0.0001989,3]
[374977848,1753486239511,-16518.77099696,0.000199,2]
[374977849,1753486239525,-6100.68417407,0.000199,2]
[374977850,1753486239537,-94903.22583957,0.000199,2]
[374977851,1753486239547,-500.0,0.00019905,2]
[374977852,1753486239556,-307.61147965,0.00019918,2]
[374977853,1753486239567,-460.0,0.00019919,2]
[374977854,1753486239577,-460.0,0.00019919,2]
[374977855,1753486239586,-460.0,0.00019919,2]
[374977856,1753486239597,-460.0,0.00019919,2]
[374977857,1753486239607,-460.0,0.00019919,2]
[374977858,1753486239617,-462.91791883,0.00019919,2]
[374977859,1753486239626,-460.0,0.00019919,2]
[374977860,1753486239636,-460.0,0.00019919,2]
[374977861,1753486239645,-460.0,0.00019919,2]
[374977862,1753486239655,-460.0,0.00019919,2]
[374977863,1753486239810,-349.18182283,0.00019919,2]
[374977864,1753486239820,-500.0,0.00019973,2]
[374977865,1753486239830,-283.35309847,0.00019992,2]
[374977866,1753486239842,-176.64690153,0.00019992,2]
[374977867,1753486239853,-161.50051247,0.00019992,2]
[374977868,1753486239865,-298.49948753,0.00019992,2]
[374977869,1753486239875,-304.26534853,0.00019992,2]
[374977871,1753486239887,-155.73465147,0.00019992,2]
[374977873,1753486239896,-358.79,0.00019992,2]
[374977875,1753486239906,-460.0,0.00019992,2]
[374977876,1753486239915,-325.47534925,0.00019992,2]
[374977906,1753486240377,-182.25,0.00019468,2]
[374977908,1753486240387,-500.0,0.00019468,2]
[374977910,1753486240396,-500.0,0.00019468,2]
[374977912,1753486240406,-274.59229756,0.00019468,2]
[374977915,1753486240415,-500.0,0.00019468,2]
[374977917,1753486240425,-500.0,0.00019468,2]
[374977918,1753486240442,-500.0,0.00019468,2]
[374977920,1753486240456,-500.0,0.00019468,2]
[374977923,1753486240466,-201.44409941,0.00019468,2]
[374977925,1753486240476,-563.77748737,0.00019468,2]
[374977927,1753486240486,-500.0,0.00019468,2]
[374977929,1753486240496,-500.0,0.00019468,2]
[374977931,1753486240506,-500.0,0.00019468,2]
[374977932,1753486240516,-65.85397242,0.00019468,2]
[374978148,1753486242873,-4.62194975,0.00019468,2]
[374978150,1753486242886,-429.52407783,0.00019468,2]
[374978152,1753486242895,-129.65092217,0.00019468,2]
[374978157,1753486242927,-370.34907783,0.00019468,2]
[374978159,1753486242937,-500.0,0.00019468,2]
[374978161,1753486242947,-500.0,0.00019468,2]
[374978163,1753486242957,-433.58568802,0.00019468,2]
[374978165,1753486242968,-500.0,0.00019468,2]
[374978167,1753486242977,-500.0,0.00019468,2]
[374978169,1753486242987,-196.12412056,0.00019468,2]
[374978171,1753486242997,-500.0,0.00019468,2]
[374978173,1753486243007,-500.0,0.00019468,2]
[374978175,1753486243017,-500.0,0.00019468,2]
[374978177,1753486243026,-500.0,0.00019468,2]
[374978179,1753486243036,-134.52465075,0.00019992,2]
[374978181,1753486243047,-460.0,0.00019993,2]
[374978184,1753486243057,-460.0,0.00019993,2]
[374978187,1753486243067,-460.0,0.00019993,2]
[374978190,1753486243076,-460.0,0.00019993,2]
[374978194,1753486243086,-460.0,0.00019993,2]
[374978197,1753486243096,-469.1690001,0.00019993,2]
[374978199,1753486243106,-460.0,0.00019993,2]
[374978201,1753486243116,-474.05,0.00019994,2]
[374978203,1753486243126,-465.07007541,0.0002,2]
[374978206,1753486243136,-183.17,0.00020101,2]
[374978207,1753486243145,-460.0,0.00020193,2]
[374978209,1753486243155,-550.98,0.00020193,2]
[374978211,1753486243164,-460.0,0.00020266,2]
[374978214,1753486243174,-460.0,0.00020266,2]
[374978216,1753486243183,-544.12,0.00020266,2]
[374978218,1753486243192,-401.74,0.00020266,2]
[374978220,1753486243202,-460.0,0.00020266,2]
[374978222,1753486243213,-460.0,0.00020267,2]
[374978224,1753486243222,-460.0,0.00020267,2]
[374978226,1753486243232,-220.9,0.00020267,2]
[374978228,1753486243241,-455.56,0.00020267,2]
[374978240,1753486243335,-585.96,0.00020267,2]
[374978242,1753486243364,-474.05,0.00020268,2]
[374978244,1753486243374,-342.00049943,0.00020283,2]
[374978246,1753486243384,-460.0,0.00020467,2]
[374978248,1753486243393,-460.0,0.0002054,2]
[374978250,1753486243403,-294.34,0.0002054,2]
[374978252,1753486243413,-357.1,0.0002054,2]
[374978254,1753486243422,-546.27,0.00020541,2]
[374978256,1753486243432,-474.05,0.00020542,2]
[374978258,1753486243441,-460.0,0.00020741,2]
[374978260,1753486243450,-315.42,0.00020814,2]
[374978263,1753486243461,-474.05,0.00020816,2]
[374978264,1753486243470,-460.0,0.00021015,2]
[374978267,1753486243480,-474.05,0.0002109,2]
[374978268,1753486243489,-12627.2413641,0.00021095,2]
[374978270,1753486243498,-342.00049943,0.00021198,2]
[374978273,1753486243508,-216.58,0.00021216,2]
[374978275,1753486243517,-1130.72,0.0002126,3]
[374978276,1753486243530,-565.36,0.0002126,3]
[374978279,1753486243540,-460.0,0.00021289,2]
[374978281,1753486243550,-215.0738,0.00021302,2]
[374978282,1753486243559,-205.23,0.0002133,2]
[374978285,1753486243571,-474.05,0.00021364,2]
[374978286,1753486243580,-18330.90888496,0.00021543,2]
[374978289,1753486243592,-1597.59919671,0.00021543,2]
[374978314,1753486243831,-500.0,0.00019468,2]
[374978316,1753486243841,-500.0,0.00019468,2]
[374978318,1753486243851,-145.15721172,0.00019468,2]
[374978320,1753486243865,-354.84278828,0.00019468,2]
[374978322,1753486243875,-500.0,0.00019468,2]
[374978324,1753486243885,-500.0,0.00019468,2]
[374978326,1753486243896,-500.0,0.00019468,2]
[374978328,1753486243907,-500.0,0.00019468,2]
[374978330,1753486243917,-500.0,0.00019468,2]
[374978333,1753486243927,-500.0,0.00019468,2]
[374978335,1753486243936,-500.0,0.00019468,2]
[374978337,1753486243946,-500.0,0.00019468,2]
[374978339,1753486243955,-500.0,0.00019468,2]
[374978341,1753486243965,-500.0,0.00019468,2]
[374978343,1753486243975,-500.0,0.00019468,2]
[374978345,1753486243987,-500.0,0.00019468,2]
[374978347,1753486243997,-500.0,0.00019468,2]
[374978349,1753486244007,-500.0,0.00019468,2]
[374978351,1753486244017,-500.0,0.00019468,2]
[374978353,1753486244027,-500.0,0.00019468,2]
[374978355,1753486244036,-500.0,0.00019468,2]
[374978357,1753486244046,-702.84935669,0.00021054,2]
[374978359,1753486244056,-8325.65001895,0.00021543,2]
[374978361,1753486244068,-23312.82204066,0.00021543,2]
[374978363,1753486244079,-460.0,0.00021563,2]
[374978365,1753486244088,-474.05,0.00021638,2]
[374978367,1753486244097,-460.0,0.00021837,2]
[374978369,1753486244107,-151.0,0.00021843,2]
[374978371,1753486244117,-151.0,0.00021843,2]
[374978373,1753486244126,-151.58359639,0.00021843,2]
[374978375,1753486244136,-151.0,0.00021843,2]
[374978377,1753486244146,-151.0,0.00021843,2]
[374978379,1753486244155,-151.0,0.00021843,2]
[374978381,1753486244164,-199.0,0.00021843,2]
[374978383,1753486244174,-151.0,0.00021843,2]
[374978385,1753486244184,-275.48504365,0.00021843,2]
[374978387,1753486244193,-151.0,0.00021843,2]
[374978389,1753486244202,-151.0,0.00021843,2]
[374978391,1753486244211,-151.0,0.00021843,2]
[374978393,1753486244221,-500.0,0.00021843,2]
[374978395,1753486244231,-151.0,0.00021843,2]
[374978397,1753486244241,-151.0,0.00021843,2]
[374978399,1753486244250,-151.0,0.00021843,2]
[374978401,1753486244260,-151.0,0.00021843,2]
[374978403,1753486244270,-500.0,0.00021843,2]
[374978405,1753486244279,-151.17869458,0.00021843,2]
[374978407,1753486244289,-151.0,0.00021843,2]
[374978409,1753486244298,-151.63033314,0.00021843,2]
[374978411,1753486244307,-151.0,0.00021843,2]
[374978413,1753486244317,-151.0,0.00021843,2]
[374978415,1753486244327,-151.0,0.00021843,2]
[374978417,1753486244336,-151.0,0.00021843,2]
[374978419,1753486244345,-151.0,0.00021843,2]
[374978421,1753486244355,-151.0,0.00021843,2]
[374978423,1753486244364,-151.0,0.00021843,2]
[374978425,1753486244373,-151.0,0.00021843,2]
[374978428,1753486244383,-184.94735063,0.00021843,2]
[374978430,1753486244393,-151.0,0.00021843,2]
[374978431,1753486244402,-151.0,0.00021843,2]
[374978434,1753486244411,-474.05,0.00021912,2]
[374978435,1753486244421,-153.0,0.00021922,2]
[374978437,1753486244431,-366.35,0.00021928,2]
[374978439,1753486244441,-343.64,0.00022,7]
[374978441,1753486244450,-6055.37,0.00022,7]
[374978444,1753486244460,-1277.93,0.00022,7]
[374978446,1753486244471,-460.0,0.00022111,2]
[374978448,1753486244480,-342.00049943,0.00022113,2]
[374978450,1753486244489,-151.38205073,0.00022117,2]
[374978451,1753486244499,-278.0,0.00022117,2]
[374978453,1753486244508,-301.0,0.00022117,2]
[374978456,1753486244518,-151.0,0.00022117,2]
[374978457,1753486244531,-151.0,0.00022117,2]
[374978460,1753486244541,-500.0,0.00022117,2]
[374978462,1753486244551,-151.0,0.00022117,2]
[374978463,1753486244560,-151.0,0.00022117,2]
[374978465,1753486244570,-199.82738621,0.00022117,2]
[374978467,1753486244579,-198.48400764,0.00022117,2]
[374978469,1753486244588,-500.0,0.00022117,2]
[374978472,1753486244598,-151.0,0.00022117,2]
[374978474,1753486244607,-151.0,0.00022117,2]
[374978475,1753486244616,-151.0,0.00022117,2]
[374978478,1753486244626,-151.0,0.00022117,2]
[374978480,1753486244635,-151.0,0.00022117,2]
[374978482,1753486244645,-260.48410387,0.00022117,2]
[374978484,1753486244655,-153.27205823,0.00022117,2]
[374978486,1753486244664,-474.05,0.00022186,2]
[374978488,1753486244674,-2805.5849624,0.00022265,2]
[374978490,1753486244684,-500.0,0.00022275,2]
[374978492,1753486244693,-500.0,0.00022275,2]
[374978494,1753486244703,-11038.18895874,0.000223,2]
[374978496,1753486244715,-702.84935669,0.00022303,2]
[374978498,1753486244725,-460.0,0.00022385,2]
[374978500,1753486244735,-151.0,0.00022391,2]
[374978502,1753486244744,-500.0,0.00022391,2]
[374978504,1753486244753,-192.27108482,0.00022391,2]
[374978506,1753486244763,-151.0,0.00022391,2]
[374978508,1753486244772,-500.0,0.00022391,2]
[374978510,1753486244782,-151.0,0.00022391,2]
[374978512,1753486244791,-151.0,0.00022391,2]
[374978514,1753486244801,-151.0,0.00022391,2]
[374978516,1753486244810,-169.6772102,0.00022391,2]
[374978518,1753486244822,-474.05,0.0002246,2]
[374978520,1753486244831,-160.108082,0.00022505,2]
[374978522,1753486244841,-460.0,0.00022659,2]
[374978524,1753486244851,-294.18116899,0.00022665,2]
[374978526,1753486244860,-500.0,0.00022665,2]
[374978528,1753486244869,-255.0,0.00022665,2]
[374978530,1753486244879,-500.0,0.00022665,2]
[374978532,1753486244888,-151.0,0.00022665,2]
[374978533,1753486244897,-245.0,0.00022665,2]
[374978534,1753486244906,-223.0315306,0.00022671,2]
[374978535,1753486244915,-474.05,0.00022733,2]
[374978536,1753486244924,-460.0,0.00022933,2]
[374978537,1753486244934,-500.0,0.00022939,2]
[374978538,1753486244943,-500.0,0.00022939,2]
[374978539,1753486244952,-151.0,0.00022939,2]
[374978540,1753486244961,-474.05,0.00023007,2]
[374978541,1753486244970,-342.00049943,0.00023029,2]
[374978542,1753486244979,-167.50850779,0.00023101,2]
[374978543,1753486244988,-410.10110408,0.00023207,2]
[374978544,1753486244997,-500.0,0.00023213,2]
[374978545,1753486245007,-508.0,0.00023213,2]
[374978546,1753486245016,-245.0,0.00023213,2]
[374978547,1753486245025,-474.05,0.00023281,2]
[374978548,1753486245035,-25864.41468594,0.000234,2]
[374978549,1753486245043,-151.0,0.000234,7]
[374978550,1753486245053,-172.0,0.000234,7]
[374978551,1753486245062,-500.0,0.00023487,2]
[374978552,1753486245071,-6055.37,0.000235,7]
[374978553,1753486245081,-1277.93,0.000235,7]
[374978554,1753486245090,-474.05,0.00023555,2]
[374978555,1753486245099,-549.52,0.00023755,2]
[374978556,1753486245108,-500.0,0.00023761,2]
[374978557,1753486245116,-474.05,0.00023829,2]
[374978559,1753486245124,-160.0,0.00023833,3]
[374978560,1753486245133,-265.43,0.000239,2]
[374978562,1753486245141,-587.25750297,0.000239,2]
[374978564,1753486245149,-6246.61600666,0.00023915,2]
[374978566,1753486245157,-342.00049943,0.00023944,2]
[374978568,1753486245164,-407.0,0.00023975,2]
[374978570,1753486245171,-1022.77320352,0.00024,7]
[374978572,1753486245179,-2805.5849624,0.00024018,2]
[374978574,1753486245189,-500.0,0.00024035,2]
[374978576,1753486245199,-231.28369723,0.0002404,2]
[374978578,1753486245209,-500.0,0.00024066,2]
[374978580,1753486245218,-474.05,0.00024103,2]
[374978582,1753486245228,-500.0,0.00024142,2]
[374978584,1753486245238,-500.0,0.00024147,2]
[374978586,1753486245248,-500.0,0.00024309,2]
[374978588,1753486245257,-500.0,0.00024363,2]
[374978590,1753486245267,-474.05,0.00024377,2]
[374978592,1753486245276,-500.0,0.00024443,2]
[374978594,1753486245286,-500.0,0.00024448,2]
[374978596,1753486245295,-205.23,0.00024464,2]
[374978598,1753486245305,-3045.56405227,0.00024472,2]
[374978600,1753486245315,-151.0,0.000245,10]
[374978602,1753486245324,-500.0,0.00024583,2]
[374978604,1753486245333,-168.0,0.00024589,2]
[374978606,1753486245342,-500.0,0.00024623,2]
[374978608,1753486245352,-474.05,0.00024651,2]
[374978610,1753486245361,-200.0,0.00024658,2]
[374978612,1753486245371,-380.0,0.00024658,2]
[374978614,1753486245380,-151.0,0.00024658,2]
[374978616,1753486245390,-482.0,0.00024658,2]
[374978618,1753486245400,-3037.4938011,0.00024666,2]
[374978620,1753486245410,-1846.14103176,0.00024666,2]
[374978622,1753486245419,-7377.17956291,0.00024666,2]
[374978624,1753486245429,-460.0,0.00024708,2]
[374978626,1753486245438,-460.0,0.00024708,2]
[374978628,1753486245448,-460.0,0.00024708,2]
[374978630,1753486245457,-460.0,0.00024708,2]
[374978632,1753486245468,-460.0,0.00024708,2]
[374978634,1753486245478,-460.0,0.00024708,2]
[374978636,1753486245488,-460.0,0.00024708,2]
[374978638,1753486245497,-510.83301678,0.00024708,2]
[374978640,1753486245507,-460.0,0.00024708,2]
[374978642,1753486245517,-460.0,0.00024708,2]
[374978644,1753486245532,-460.0,0.00024708,2]
[374978646,1753486245541,-460.0,0.00024708,2]
[374978648,1753486245552,-253.67784971,0.00024721,2]
[374978650,1753486245561,-500.0,0.00024721,2]
[374978652,1753486245571,-800.0,0.00024758,2]
[374978654,1753486245580,-500.0,0.0002476,2]
[374978656,1753486245591,-306.0,0.00024767,2]
[374978658,1753486245601,-800.0,0.00024774,2]
[374978660,1753486245614,-153.733714,0.000248,15]
[374978662,1753486245624,-500.0,0.00024843,2]
[374978664,1753486245635,-500.0,0.00024855,2]
[374978666,1753486245645,-500.0,0.00024857,2]
[374978668,1753486245654,-342.00049943,0.00024859,2]
[374978670,1753486245663,-500.0,0.00024873,2]
[374978672,1753486245673,-153.733714,0.0002488,6]
[374978674,1753486245683,-508.4770366,0.00024886,2]
[374978676,1753486245693,-87462.38213126,0.00024888,2]
[374978826,1753486247216,-702.84935669,0.00023551,2]
[374978828,1753486247226,-456.24964341,0.000248,2]
[374979432,1753486586082,160.108082,0.00013699,2]
[374979448,1753487160957,-960.0,0.00018579,2]
[374979474,1753487432735,-28.2211626,0.00018579,2]
[374979475,1753487432745,-243.17987273,0.000189,2]
[374979476,1753487432756,-168.2474739,0.00018944,2]
[374979477,1753487432766,-235.49050547,0.00019344,2]
[374979478,1753487432775,-312.16666667,0.00019423,2]
[374979479,1753487432784,-300.0,0.00019444,2]
[374979480,1753487432794,-300.0,0.00019444,2]
[374979481,1753487432804,-1083.0,0.00019444,2]
[374979482,1753487432813,-460.0,0.00019445,2]
[374979483,1753487432823,-460.0,0.00019445,2]
[374979484,1753487432832,-460.0,0.00019445,2]
[374979485,1753487432841,-460.0,0.00019445,2]
[374979486,1753487432851,-460.0,0.00019445,2]
[374979487,1753487432860,-460.0,0.00019445,2]
[374979488,1753487432869,-460.0,0.00019445,2]
[374979489,1753487432878,-460.0,0.00019445,2]
[374979490,1753487432890,-460.0,0.00019445,2]
[374979491,1753487432899,-460.0,0.00019445,2]
[374979492,1753487432908,-460.0,0.00019445,2]
[374979493,1753487432917,-312.18907449,0.00019445,2]
[374979494,1753487432927,-460.0,0.00019445,2]
[374979495,1753487432936,-460.0,0.00019445,2]
[374979496,1753487432945,-460.0,0.00019445,2]
[374979497,1753487432954,-460.0,0.00019445,2]
[374979498,1753487432964,-460.0,0.00019445,2]
[374979499,1753487432973,-460.0,0.00019445,2]
[374979500,1753487432982,-171.00024972,0.00019619,2]
[374979501,1753487432992,-460.0,0.00019717,2]
[374979502,1753487433001,-460.0,0.00019717,2]
[374979503,1753487433013,-460.0,0.00019717,2]
[374979504,1753487433023,-460.0,0.00019717,2]
[374979505,1753487433032,-460.0,0.00019717,2]
[374979506,1753487433042,-460.0,0.00019717,2]
[374979507,1753487433052,-460.0,0.00019717,2]
[374979508,1753487433061,-460.0,0.00019717,2]
[374979509,1753487433071,-460.0,0.00019717,2]
[374979510,1753487433081,-460.0,0.00019717,2]
[374979511,1753487433090,-460.0,0.00019717,2]
[374979512,1753487433100,-460.0,0.00019718,2]
[374979513,1753487433110,-254.98959578,0.00019718,2]
[374979514,1753487433120,-460.0,0.00019718,2]
[374979515,1753487433129,-460.0,0.00019718,2]
[374979516,1753487433138,-460.0,0.00019718,2]
[374979517,1753487433148,-460.0,0.00019718,2]
[374979518,1753487433158,-460.0,0.00019718,2]
[374979519,1753487433168,-460.0,0.00019718,2]
[374979520,1753487433177,-460.0,0.00019718,2]
[374979521,1753487433187,-460.0,0.00019718,2]
[374979522,1753487433196,-460.0,0.00019718,2]
[374979523,1753487433206,-460.0,0.00019718,2]
[374979524,1753487433215,-460.0,0.00019718,2]
[374979525,1753487433225,-485.07599321,0.00019718,2]
[374979526,1753487433235,-460.0,0.00019718,2]
[374979527,1753487433244,-460.0,0.00019718,2]
[374979528,1753487433254,-460.0,0.00019718,2]
[374979529,1753487433380,-460.0,0.00019718,2]
[374979530,1753487433418,-460.0,0.00019718,2]
[374979531,1753487433428,-460.0,0.00019718,2]
[374979532,1753487433438,-460.0,0.00019718,2]
[374979533,1753487433447,-460.0,0.00019719,2]
[374979534,1753487433457,-460.0,0.00019719,2]
[374979535,1753487433466,-551.56246789,0.00019719,2]
[374979536,1753487433476,-403.28,0.00019719,2]
[374979537,1753487433486,-460.0,0.00019719,2]
[374979538,1753487433495,-460.0,0.00019719,2]
[374979539,1753487433508,-460.0,0.00019719,2]
[374979540,1753487433517,-460.0,0.00019719,2]
[374979541,1753487433527,-460.0,0.00019719,2]
[374979542,1753487433536,-460.0,0.00019919,2]
[374979543,1753487433546,-460.0,0.00019919,2]
[374979544,1753487433556,-460.0,0.00019991,2]
[374979545,1753487433566,-460.0,0.00019991,2]
[374979546,1753487433577,-460.0,0.00019991,2]
[374979547,1753487433586,-460.0,0.00019991,2]
[374979548,1753487433596,-460.0,0.00019991,2]
[374979549,1753487433606,-460.0,0.00019991,2]
[374979550,1753487433616,-460.0,0.00019991,2]
[374979551,1753487433625,-460.0,0.00019991,2]
[374979552,1753487433635,-460.0,0.00019991,2]
[374979553,1753487433645,-460.0,0.00019991,2]
[374979554,1753487433655,-460.0,0.00019991,2]
[374979555,1753487433664,-460.0,0.00019992,2]
[374979556,1753487433674,-460.0,0.00019992,2]
[374979557,1753487433684,-460.0,0.00019992,2]
[374979558,1753487433693,-460.0,0.00019992,2]
[374979559,1753487433703,-460.0,0.00019992,2]
[374979560,1753487433713,-460.0,0.00019992,2]
[374979561,1753487433723,-460.0,0.00019992,2]
[374979562,1753487433733,-460.0,0.00019992,2]
[374979563,1753487433748,-460.0,0.00019992,2]
[374979564,1753487433764,-460.0,0.00019992,2]
[374979565,1753487433775,-460.0,0.00019992,2]
[374979566,1753487433785,-243.02,0.00019992,2]
[374979567,1753487433795,-460.0,0.00019993,2]
[374979568,1753487433805,-460.0,0.00019993,2]
[374979569,1753487433815,-460.0,0.00019993,2]
[374979570,1753487433825,-460.0,0.00019993,2]
[374979571,1753487433835,-460.0,0.00019993,2]
[374979572,1753487433845,-460.0,0.00019993,2]
[374979573,1753487433856,-460.0,0.00019993,2]
[374979574,1753487433866,-171.09,0.00020102,2]
[374979575,1753487433875,-500.0,0.0002019,2]
[374979576,1753487433886,-500.0,0.0002019,2]
[374979577,1753487433896,-500.0,0.0002019,2]
[374979578,1753487433905,-500.0,0.0002019,2]
[374979579,1753487433915,-603.73174311,0.0002019,2]
[374979580,1753487433926,-500.0,0.0002019,2]
[374979581,1753487433936,-500.0,0.0002019,2]
[374979582,1753487433946,-500.0,0.0002019,2]
[374979583,1753487433956,-269.61241206,0.0002019,2]
[374979584,1753487433966,-500.0,0.0002019,2]
[374979585,1753487433976,-500.0,0.0002019,2]
[374979586,1753487433986,-460.0,0.00020193,2]
[374979587,1753487433996,-500.0,0.00020194,2]
[374979588,1753487434005,-500.0,0.00020194,2]
[374979589,1753487434015,-460.0,0.00020265,2]
[374979590,1753487434025,-460.0,0.00020265,2]
[374979591,1753487434034,-460.0,0.00020265,2]
[374979592,1753487434044,-460.0,0.00020265,2]
[374979593,1753487434054,-460.0,0.00020265,2]
[374979594,1753487434064,-215.14,0.00020265,2]
[374979595,1753487434074,-414.98265038,0.00020265,2]
[374979596,1753487434084,-460.0,0.00020265,2]
[374979597,1753487434094,-460.0,0.00020265,2]
[374979598,1753487434104,-460.0,0.00020265,2]
[374979599,1753487434114,-460.0,0.00020266,2]
[374979600,1753487434123,-460.0,0.00020266,2]
[374979601,1753487434133,-460.0,0.00020266,2]
[374979602,1753487434142,-460.0,0.00020266,2]
[374979603,1753487434151,-460.0,0.00020266,2]
[374979604,1753487434161,-460.0,0.00020266,2]
[374979605,1753487434170,-311.6,0.00020266,2]
[374979606,1753487434180,-290.21,0.00020266,2]
[374979607,1753487434190,-0.53005035,0.00020266,2]
[374979616,1753487438440,-335.0956944,0.00020266,2]
[374979617,1753487438452,-124.37425525,0.00020266,2]
[374979618,1753487438462,-234.62103494,0.00020266,2]
[374979619,1753487438557,-225.37896506,0.00020266,2]
[374979620,1753487438567,-460.0,0.00020266,2]
[374979621,1753487438578,-460.0,0.00020267,2]
[374979622,1753487438587,-394.10078345,0.00020267,2]
[374979623,1753487438597,-223.55760895,0.00020281,2]
[374979624,1753487438608,-460.0,0.00020467,2]
[374979625,1753487438617,-460.0,0.00020539,2]
[374979626,1753487438627,-460.0,0.00020539,2]
[374979627,1753487438637,-460.0,0.00020539,2]
[374979628,1753487438647,-460.0,0.00020539,2]
[374979629,1753487438656,-460.0,0.00020539,2]
[374979630,1753487438676,-169.1885412,0.00020539,2]
[374979929,1753487443459,-460.0,0.00019717,2]
[374979931,1753487443470,-188.61,0.00019718,2]
[374979934,1753487443480,-460.0,0.00019991,2]
[374979936,1753487443489,-460.0,0.00020265,2]
[374979937,1753487443499,-290.8114588,0.00020539,2]
[374979939,1753487443508,-460.0,0.00020539,2]
[374979941,1753487443518,-460.0,0.0002054,2]
[374979943,1753487443528,-460.0,0.0002054,2]
[374979945,1753487443537,-460.0,0.0002054,2]
[374979947,1753487443547,-300.9842932,0.0002054,2]
[374979953,1753487443588,-159.0157068,0.0002054,2]
[374979955,1753487443598,-516.38,0.00020741,2]
[374979957,1753487443607,-460.0,0.00020813,2]
[374979959,1753487443616,-460.0,0.00020813,2]
[374979961,1753487443625,-460.0,0.00020813,2]
[374979964,1753487443635,-569.69,0.00020813,2]
[374979967,1753487443644,-460.0,0.00020813,2]
[374979970,1753487443654,-460.0,0.00020813,2]
[374979973,1753487443663,-460.0,0.00020814,2]
[374979976,1753487443673,-460.0,0.00020814,2]
[374979979,1753487443682,-460.0,0.00020814,2]
[374979982,1753487443691,-500.0,0.00021064,2]
[374979984,1753487443700,-460.0,0.00021087,2]
[374979986,1753487443709,-460.0,0.00021087,2]
[374979988,1753487443719,-460.0,0.00021087,2]
[374979990,1753487443728,-566.99,0.00021087,2]
[374979992,1753487443738,-460.0,0.00021088,2]
[374979994,1753487443747,-460.0,0.00021088,2]
[374979996,1753487443756,-260.0,0.00021133,2]
[374979998,1753487443766,-173.264,0.00021212,2]
[374980000,1753487443775,-215.0738,0.00021302,2]
[374980002,1753487443785,-397.13088006,0.00021302,2]
[374980004,1753487443794,-460.0,0.00021361,2]
[374980006,1753487443803,-460.0,0.00021361,2]
[374980008,1753487443812,-460.0,0.00021361,2]
[374980010,1753487443821,-247.27,0.00021362,2]
[374980012,1753487443831,-460.0,0.00021362,2]
[374980014,1753487443840,-460.0,0.00021635,2]
[374980016,1753487443849,-460.0,0.00021635,2]
[374980018,1753487443858,-305.09,0.00021635,2]
[374980020,1753487443868,-460.0,0.00021636,2]
[374980022,1753487443877,-460.0,0.00021909,2]
[374980024,1753487443886,-211.63,0.00021909,2]
[374980026,1753487443895,-460.0,0.0002191,2]
[374980028,1753487443904,-342.19,0.0002193,2]
[374980029,1753487443914,-460.0,0.00022183,2]
[374980031,1753487443923,-460.0,0.00022184,2]
[374980034,1753487443932,-460.0,0.00022457,2]
[374980036,1753487443942,-460.0,0.00022458,2]
[374980038,1753487443951,-223.0315306,0.00022671,2]
[374980039,1753487443961,-460.0,0.00022731,2]